{"text_format":"1","workbook":"xlsx","n_sheets":4,"sheets":["Лист1","Лист2","Лист3","стройки"],"not_rendered":{"charts":0,"images":0,"macros":0,"external_links":1,"defined_names":3,"comments":0,"pivot_tables":0},"unopened":[],"bounds":{"document_bytes":16777216,"sheet_cells":100000,"rows_first":2000,"rows_last":500,"rows_between":2000,"halvings":0,"cell_chars":16384,"cell_head_chars":4096},"cells_cut":0,"cells_raw":0,"read":"whole","date_system":"1900"}

{"sheet":"Лист1","index":0,"n_rows":0,"n_cols":0,"rows_kept":0,"cut":false,"hidden":false,"merged":[]}

{"sheet":"Лист2","index":1,"n_rows":0,"n_cols":0,"rows_kept":0,"cut":false,"hidden":false,"merged":[]}

{"sheet":"Лист3","index":2,"n_rows":0,"n_cols":0,"rows_kept":0,"cut":false,"hidden":false,"merged":[]}

{"sheet":"стройки","index":3,"n_rows":86,"n_cols":64,"rows_kept":86,"cut":false,"hidden":false,"merged":[]}
[]
[]
[]
[]
["погорелки",null,null,null,null,null,null,"норское",null,null,null,null,null,null,"ярославль",null,null,null,null,null,null,"стр3",null,null,null,null,null,null,"чип",null,null,null,null,null,null,"чук",null,null,null,null,null,null,"пробф",null,null,null,null,null,null,"Столбец1",null,null,null,null,null,null,"Столбец2"]
["номенклатура","вес","сум.вес","план","Столбец1","факт","остаток","номенклатура2","вес2","сум.вес2","план2","Столбец7","факт2","остаток2","номенклатура22","вес3","сум.вес3","план3","столбец","факт3","остаток3","номенклатура4","вес4","сум.вес4","план4","Столбец4","факт4","остаток4","номенклатура5","вес5","сум.вес5","план5","Столбец776","факт5","остаток5","номенклатура6","вес6","сум.вес6","план6","Столбец7766","факт6","остаток6","номенклатура3323","вес4434","сум.вес5545","план6656","Столбец7767","факт8878","остаток7","номенклатура3324","вес4435","сум.вес5546","план6657","Столбец7768","факт8879","остаток8","номенклатура3325","вес4436","сум.вес5547","план6658","факт8","остаток9"]
["ФБС24.3.6-т",0.54,null,15,null,14,{"$f":"Таблица2[[#This Row],[план]]-Таблица2[[#This Row],[факт]]","v":1},"ФБС24.3.6-т",1.96,null,10,null,5,{"$f":"Таблица2[[#This Row],[план2]]-Таблица2[[#This Row],[факт2]]","v":5},"ФБС24.3.6-т",1.96,null,null,null,0,{"$f":"Таблица2[[#This Row],[план3]]-Таблица2[[#This Row],[факт3]]","v":0},null,null,null,null,null,0,{"$f":"Таблица2[[#This Row],[план4]]-Таблица2[[#This Row],[факт4]]","v":0},null,null,null,null,null,0,{"$f":"Таблица2[[#This Row],[план5]]-Таблица2[[#This Row],[факт5]]","v":0},null,null,null,12,null,4,{"$f":"Таблица2[[#This Row],[план6]]-Таблица2[[#This Row],[факт6]]","v":8},null,null,null,null,null,null,{"$f":"Таблица2[[#This Row],[план6656]]-Таблица2[[#This Row],[факт8878]]","v":0},null,null,null,null,null,null,{"$f":"Таблица2[[#This Row],[план6657]]-Таблица2[[#This Row],[факт8879]]","v":0},null,null,null,null,null,{"$f":"Таблица2[[#This Row],[план6658]]-Таблица2[[#This Row],[факт8]]","v":0}]
["ФБС24.4.6-т",3.36,null,11,null,2,{"$f":"Таблица2[[#This Row],[план]]-Таблица2[[#This Row],[факт]]","v":9},"ФБС24.4.6-т",0.64,null,11,null,0,{"$f":"Таблица2[[#This Row],[план2]]-Таблица2[[#This Row],[факт2]]","v":11},"ФБС24.4.6-т",0.64,null,null,null,0,{"$f":"Таблица2[[#This Row],[план3]]-Таблица2[[#This Row],[факт3]]","v":0},null,null,null,null,null,0,{"$f":"Таблица2[[#This Row],[план4]]-Таблица2[[#This Row],[факт4]]","v":0},null,null,null,null,null,0,{"$f":"Таблица2[[#This Row],[план5]]-Таблица2[[#This Row],[факт5]]","v":0},null,null,null,null,null,null,{"$f":"Таблица2[[#This Row],[план6]]-Таблица2[[#This Row],[факт6]]","v":0},null,null,null,null,null,null,{"$f":"Таблица2[[#This Row],[план6656]]-Таблица2[[#This Row],[факт8878]]","v":0},null,null,null,null,null,null,{"$f":"Таблица2[[#This Row],[план6657]]-Таблица2[[#This Row],[факт8879]]","v":0},null,null,null,null,null,{"$f":"Таблица2[[#This Row],[план6658]]-Таблица2[[#This Row],[факт8]]","v":0}]
["ФБС24.5.6-т",1.58,null,12,null,1,{"$f":"Таблица2[[#This Row],[план]]-Таблица2[[#This Row],[факт]]","v":11},"ФБС24.5.6-т",0.79,null,12,null,1,{"$f":"Таблица2[[#This Row],[план2]]-Таблица2[[#This Row],[факт2]]","v":11},"ФБС24.5.6-т",0.79,null,null,null,0,{"$f":"Таблица2[[#This Row],[план3]]-Таблица2[[#This Row],[факт3]]","v":0},null,null,null,null,null,0,{"$f":"Таблица2[[#This Row],[план4]]-Таблица2[[#This Row],[факт4]]","v":0},null,null,null,null,null,0,{"$f":"Таблица2[[#This Row],[план5]]-Таблица2[[#This Row],[факт5]]","v":0},null,null,null,null,null,null,{"$f":"Таблица2[[#This Row],[план6]]-Таблица2[[#This Row],[факт6]]","v":0},null,null,null,null,null,null,{"$f":"Таблица2[[#This Row],[план6656]]-Таблица2[[#This Row],[факт8878]]","v":0},null,null,null,null,null,null,{"$f":"Таблица2[[#This Row],[план6657]]-Таблица2[[#This Row],[факт8879]]","v":0},null,null,null,null,null,{"$f":"Таблица2[[#This Row],[план6658]]-Таблица2[[#This Row],[факт8]]","v":0}]
["ФБС12.5.6-т",0.31,null,13,null,0,{"$f":"Таблица2[[#This Row],[план]]-Таблица2[[#This Row],[факт]]","v":13},"ФБС12.5.6-т",0.96,null,13,null,0,{"$f":"Таблица2[[#This Row],[план2]]-Таблица2[[#This Row],[факт2]]","v":13},"ФБС12.5.6-т",0.96,null,null,null,0,{"$f":"Таблица2[[#This Row],[план3]]-Таблица2[[#This Row],[факт3]]","v":0},null,null,null,null,null,0,{"$f":"Таблица2[[#This Row],[план4]]-Таблица2[[#This Row],[факт4]]","v":0},null,null,null,null,null,0,{"$f":"Таблица2[[#This Row],[план5]]-Таблица2[[#This Row],[факт5]]","v":0},null,null,null,null,null,null,{"$f":"Таблица2[[#This Row],[план6]]-Таблица2[[#This Row],[факт6]]","v":0},null,null,null,null,null,null,{"$f":"Таблица2[[#This Row],[план6656]]-Таблица2[[#This Row],[факт8878]]","v":0},null,null,null,null,null,null,{"$f":"Таблица2[[#This Row],[план6657]]-Таблица2[[#This Row],[факт8879]]","v":0},null,null,null,null,null,{"$f":"Таблица2[[#This Row],[план6658]]-Таблица2[[#This Row],[факт8]]","v":0}]
["ФБС12.6.6-т",0.79,null,14,null,1,{"$f":"Таблица2[[#This Row],[план]]-Таблица2[[#This Row],[факт]]","v":13},"ФБС12.6.6-т",0.43,null,14,null,2,{"$f":"Таблица2[[#This Row],[план2]]-Таблица2[[#This Row],[факт2]]","v":12},"ФБС12.6.6-т",0.43,null,3,null,4,{"$f":"Таблица2[[#This Row],[план3]]-Таблица2[[#This Row],[факт3]]","v":-1},null,null,null,null,null,0,{"$f":"Таблица2[[#This Row],[план4]]-Таблица2[[#This Row],[факт4]]","v":0},null,null,null,null,null,0,{"$f":"Таблица2[[#This Row],[план5]]-Таблица2[[#This Row],[факт5]]","v":0},null,null,null,null,null,null,{"$f":"Таблица2[[#This Row],[план6]]-Таблица2[[#This Row],[факт6]]","v":0},null,null,null,null,null,null,{"$f":"Таблица2[[#This Row],[план6656]]-Таблица2[[#This Row],[факт8878]]","v":0},null,null,null,null,null,null,{"$f":"Таблица2[[#This Row],[план6657]]-Таблица2[[#This Row],[факт8879]]","v":0},null,null,null,null,null,{"$f":"Таблица2[[#This Row],[план6658]]-Таблица2[[#This Row],[факт8]]","v":0}]
["ФБС12.4.3-т",0.96,null,15,null,0,{"$f":"Таблица2[[#This Row],[план]]-Таблица2[[#This Row],[факт]]","v":15},"ФБС12.4.3-т",0.54,null,15,null,0,{"$f":"Таблица2[[#This Row],[план2]]-Таблица2[[#This Row],[факт2]]","v":15},null,null,null,null,null,0,{"$f":"Таблица2[[#This Row],[план3]]-Таблица2[[#This Row],[факт3]]","v":0},null,null,null,null,null,0,{"$f":"Таблица2[[#This Row],[план4]]-Таблица2[[#This Row],[факт4]]","v":0},null,null,null,null,null,0,{"$f":"Таблица2[[#This Row],[план5]]-Таблица2[[#This Row],[факт5]]","v":0},null,null,null,null,null,null,{"$f":"Таблица2[[#This Row],[план6]]-Таблица2[[#This Row],[факт6]]","v":0},null,null,null,null,null,null,{"$f":"Таблица2[[#This Row],[план6656]]-Таблица2[[#This Row],[факт8878]]","v":0},null,null,null,null,null,null,{"$f":"Таблица2[[#This Row],[план6657]]-Таблица2[[#This Row],[факт8879]]","v":0},null,null,null,null,null,{"$f":"Таблица2[[#This Row],[план6658]]-Таблица2[[#This Row],[факт8]]","v":0}]
["2ПБ10-1",0.43,null,16,null,0,{"$f":"Таблица2[[#This Row],[план]]-Таблица2[[#This Row],[факт]]","v":16},"2ПБ10-1",1.97,null,16,null,1,{"$f":"Таблица2[[#This Row],[план2]]-Таблица2[[#This Row],[факт2]]","v":15},null,null,null,null,null,0,{"$f":"Таблица2[[#This Row],[план3]]-Таблица2[[#This Row],[факт3]]","v":0},null,null,null,null,null,0,{"$f":"Таблица2[[#This Row],[план4]]-Таблица2[[#This Row],[факт4]]","v":0},null,null,null,null,null,0,{"$f":"Таблица2[[#This Row],[план5]]-Таблица2[[#This Row],[факт5]]","v":0},null,null,null,null,null,null,{"$f":"Таблица2[[#This Row],[план6]]-Таблица2[[#This Row],[факт6]]","v":0},null,null,null,null,null,null,{"$f":"Таблица2[[#This Row],[план6656]]-Таблица2[[#This Row],[факт8878]]","v":0},null,null,null,null,null,null,{"$f":"Таблица2[[#This Row],[план6657]]-Таблица2[[#This Row],[факт8879]]","v":0},null,null,null,null,null,{"$f":"Таблица2[[#This Row],[план6658]]-Таблица2[[#This Row],[факт8]]","v":0}]
["2ПБ13-1-п",0.54,null,21,null,0,{"$f":"Таблица2[[#This Row],[план]]-Таблица2[[#This Row],[факт]]","v":21},"2ПБ13-1-п",2.37,null,5,null,1,{"$f":"Таблица2[[#This Row],[план2]]-Таблица2[[#This Row],[факт2]]","v":4},null,null,null,null,null,0,{"$f":"Таблица2[[#This Row],[план3]]-Таблица2[[#This Row],[факт3]]","v":0},null,null,null,null,null,0,{"$f":"Таблица2[[#This Row],[план4]]-Таблица2[[#This Row],[факт4]]","v":0},null,null,null,null,null,0,{"$f":"Таблица2[[#This Row],[план5]]-Таблица2[[#This Row],[факт5]]","v":0},null,null,null,null,null,null,{"$f":"Таблица2[[#This Row],[план6]]-Таблица2[[#This Row],[факт6]]","v":0},null,null,null,null,null,null,{"$f":"Таблица2[[#This Row],[план6656]]-Таблица2[[#This Row],[факт8878]]","v":0},null,null,null,null,null,null,{"$f":"Таблица2[[#This Row],[план6657]]-Таблица2[[#This Row],[факт8879]]","v":0},null,null,null,null,null,{"$f":"Таблица2[[#This Row],[план6658]]-Таблица2[[#This Row],[факт8]]","v":0}]
["ПК56.12-10",3.36,null,12,null,0,{"$f":"Таблица2[[#This Row],[план]]-Таблица2[[#This Row],[факт]]","v":12},"ПК56.12-10",3.16,null,7,null,0,{"$f":"Таблица2[[#This Row],[план2]]-Таблица2[[#This Row],[факт2]]","v":7},null,null,null,null,null,0,{"$f":"Таблица2[[#This Row],[план3]]-Таблица2[[#This Row],[факт3]]","v":0},null,null,null,null,null,0,{"$f":"Таблица2[[#This Row],[план4]]-Таблица2[[#This Row],[факт4]]","v":0},null,null,null,null,null,0,{"$f":"Таблица2[[#This Row],[план5]]-Таблица2[[#This Row],[факт5]]","v":0},null,null,null,null,null,null,{"$f":"Таблица2[[#This Row],[план6]]-Таблица2[[#This Row],[факт6]]","v":0},null,null,null,null,null,null,{"$f":"Таблица2[[#This Row],[план6656]]-Таблица2[[#This Row],[факт8878]]","v":0},null,null,null,null,null,null,{"$f":"Таблица2[[#This Row],[план6657]]-Таблица2[[#This Row],[факт8879]]","v":0},null,null,null,null,null,{"$f":"Таблица2[[#This Row],[план6658]]-Таблица2[[#This Row],[факт8]]","v":0}]
["ПК27.12-10",1.58,null,6,null,0,{"$f":"Таблица2[[#This Row],[план]]-Таблица2[[#This Row],[факт]]","v":6},"ПК27.12-10",3.1,null,null,null,0,{"$f":"Таблица2[[#This Row],[план2]]-Таблица2[[#This Row],[факт2]]","v":0},null,null,null,null,null,0,{"$f":"Таблица2[[#This Row],[план3]]-Таблица2[[#This Row],[факт3]]","v":0},null,null,null,null,null,0,{"$f":"Таблица2[[#This Row],[план4]]-Таблица2[[#This Row],[факт4]]","v":0},null,null,null,null,null,0,{"$f":"Таблица2[[#This Row],[план5]]-Таблица2[[#This Row],[факт5]]","v":0},null,null,null,null,null,null,{"$f":"Таблица2[[#This Row],[план6]]-Таблица2[[#This Row],[факт6]]","v":0},null,null,null,null,null,null,{"$f":"Таблица2[[#This Row],[план6656]]-Таблица2[[#This Row],[факт8878]]","v":0},null,null,null,null,null,null,{"$f":"Таблица2[[#This Row],[план6657]]-Таблица2[[#This Row],[факт8879]]","v":0},null,null,null,null,null,{"$f":"Таблица2[[#This Row],[план6658]]-Таблица2[[#This Row],[факт8]]","v":0}]
["ww",2,null,18,null,0,{"$f":"Таблица2[[#This Row],[план]]-Таблица2[[#This Row],[факт]]","v":18},"ыыыыыы",1,null,2,null,2,{"$f":"Таблица2[[#This Row],[план2]]-Таблица2[[#This Row],[факт2]]","v":0},null,null,null,null,null,0,{"$f":"Таблица2[[#This Row],[план3]]-Таблица2[[#This Row],[факт3]]","v":0},null,null,null,null,null,0,{"$f":"Таблица2[[#This Row],[план4]]-Таблица2[[#This Row],[факт4]]","v":0},null,null,null,null,null,0,{"$f":"Таблица2[[#This Row],[план5]]-Таблица2[[#This Row],[факт5]]","v":0},null,null,null,null,null,null,{"$f":"Таблица2[[#This Row],[план6]]-Таблица2[[#This Row],[факт6]]","v":0},null,null,null,null,null,null,{"$f":"Таблица2[[#This Row],[план6656]]-Таблица2[[#This Row],[факт8878]]","v":0},null,null,null,null,null,null,{"$f":"Таблица2[[#This Row],[план6657]]-Таблица2[[#This Row],[факт8879]]","v":0},null,null,null,null,null,{"$f":"Таблица2[[#This Row],[план6658]]-Таблица2[[#This Row],[факт8]]","v":0}]
["ыыыыыы",1,null,7,null,2,{"$f":"Таблица2[[#This Row],[план]]-Таблица2[[#This Row],[факт]]","v":5},null,null,null,null,null,0,{"$f":"Таблица2[[#This Row],[план2]]-Таблица2[[#This Row],[факт2]]","v":0},null,null,null,null,null,0,{"$f":"Таблица2[[#This Row],[план3]]-Таблица2[[#This Row],[факт3]]","v":0},null,null,null,null,null,0,{"$f":"Таблица2[[#This Row],[план4]]-Таблица2[[#This Row],[факт4]]","v":0},null,null,null,null,null,0,{"$f":"Таблица2[[#This Row],[план5]]-Таблица2[[#This Row],[факт5]]","v":0},null,null,null,null,null,null,{"$f":"Таблица2[[#This Row],[план6]]-Таблица2[[#This Row],[факт6]]","v":0},null,null,null,null,null,null,{"$f":"Таблица2[[#This Row],[план6656]]-Таблица2[[#This Row],[факт8878]]","v":0},null,null,null,null,null,null,{"$f":"Таблица2[[#This Row],[план6657]]-Таблица2[[#This Row],[факт8879]]","v":0},null,null,null,null,null,{"$f":"Таблица2[[#This Row],[план6658]]-Таблица2[[#This Row],[факт8]]","v":0}]
[]
[]
[]
[]
[]
[]
[]
[]
[]
[]
[]
[]
[]
[]
[]
[]
[]
[]
[]
[]
[]
[]
[]
[]
[]
[]
[]
[]
[]
[]
[]
[]
[]
[]
[]
[]
[]
[]
[]
[]
[]
[]
[]
[]
[]
[]
[]
[]
[]
[]
[]
[]
[]
[]
[]
[]
[]
[]
[]
[]
[]
[]
[]
[]
[]
[]
[]
[null,null,null,null,null,{"$f":"SUM(F3:F85)","v":20},null,null,null,null,null,null,{"$f":"SUM(M3:M85)","v":12},null,null,null,null,null,null,{"$f":"SUM(T3:T85)","v":4},null,null,null,null,null,null,{"$f":"SUM(AA3:AA85)","v":0},null,null,null,null,null,null,{"$f":"SUM(AH3:AH85)","v":0},null,null,null,null,null,null,{"$f":"SUM(AO3:AO85)","v":4},null,null,null,null,null,null,{"$f":"SUM(AV3:AV85)","v":0},null,null,null,null,null,null,{"$f":"SUM(BC3:BC85)","v":0},null,null,null,null,null,null,{"$f":"SUM(BJ3:BJ85)","v":0},null,{"$f":"SUM(A86:BK86)","v":40}]